fUSD/lending_fUSD_20240515
["ID","MTS","AMOUNT","RATE_DAILY","PERIOD"]
[327099575,1715811040958,-500.0,0.0001178,2]
[327099576,1715811040967,-500.0,0.0001178,2]
[327099577,1715811040976,-500.0,0.0001178,2]
[327099578,1715811040985,-513.53177937,0.0001178,2]
[327099579,1715811040995,-500.0,0.0001178,2]
[327099580,1715811041004,-500.0,0.0001178,2]
[327099581,1715811041015,-166.76,0.0001178,2]
[327099582,1715811041024,-500.0,0.0001178,2]
[327099583,1715811041033,-568.1,0.0001178,2]
[327099584,1715811041042,-500.0,0.0001178,2]
[327099585,1715811041051,-392.7,0.0001178,2]
[327099586,1715811041060,-500.0,0.0001178,2]
[327099587,1715811041069,-500.0,0.0001178,2]
[327099588,1715811041078,-500.0,0.0001178,2]
[327099589,1715811041087,-500.0,0.0001178,2]
[327099590,1715811041096,-500.0,0.0001178,2]
[327099591,1715811041105,-500.0,0.0001178,2]
[327099592,1715811041114,-500.0,0.0001178,2]
[327099593,1715811041123,-217.0,0.0001178,2]
[327099594,1715811041133,-601.9,0.0001178,2]
[327099595,1715811041143,-500.0,0.0001178,2]
[327099596,1715811041152,-500.0,0.0001178,2]
[327099597,1715811041161,-513.3,0.0001178,2]
[327099598,1715811041171,-500.0,0.0001178,2]
[327099599,1715811041182,-500.0,0.0001178,2]
[327099600,1715811041191,-500.0,0.0001178,2]
[327099601,1715811041200,-500.0,0.0001178,2]
[327099602,1715811041210,-500.0,0.0001178,2]
[327099603,1715811041219,-500.0,0.0001178,2]
[327099604,1715811041229,-500.0,0.0001178,2]
[327099605,1715811041240,-500.0,0.0001178,2]
[327099606,1715811041250,-531.24498958,0.0001178,2]
[327099607,1715811041259,-500.0,0.0001178,2]
[327099608,1715811041268,-500.0,0.0001178,2]
[327099609,1715811041278,-545.36,0.0001178,2]
[327099610,1715811041287,-500.0,0.0001178,2]
[327099611,1715811041296,-500.0,0.0001178,2]
[327099612,1715811041306,-150.0,0.0001178,2]
[327099613,1715811041315,-150.0,0.0001178,2]
[327099614,1715811041324,-500.0,0.0001178,2]
[327099615,1715811041333,-500.0,0.0001178,2]
[327099616,1715811041343,-500.0,0.0001178,2]
[327099617,1715811041352,-455.36,0.0001178,2]
[327099618,1715811041361,-500.0,0.0001178,2]
[327099619,1715811041371,-500.0,0.0001178,2]
[327099620,1715811041380,-208.39307425,0.0001178,2]
[327099621,1715811041389,-500.0,0.0001178,2]
[327099622,1715811041399,-500.0,0.0001178,2]
[327099623,1715811041408,-500.0,0.0001178,2]
[327099624,1715811041418,-304.57204179,0.0001178,2]
[327099625,1715811041427,-500.0,0.0001178,2]
[327099626,1715811041437,-500.0,0.0001178,2]
[327099627,1715811041446,-500.0,0.0001178,2]
[327099628,1715811041455,-500.0,0.0001178,2]
[327099629,1715811041465,-159.81138791,0.0001178,2]
[327099630,1715811041474,-500.0,0.0001178,2]
[327099631,1715811041483,-500.0,0.0001178,2]
[327099632,1715811041492,-500.0,0.0001178,2]
[327099633,1715811041502,-514.86598346,0.0001178,2]
[327099634,1715811041516,-500.0,0.0001178,2]
[327099635,1715811041526,-500.0,0.0001178,2]
[327099637,1715811041535,-500.0,0.0001178,2]
[327099638,1715811041545,-500.0,0.0001178,2]
[327099639,1715811041554,-500.0,0.0001178,2]
[327099640,1715811041569,-500.0,0.0001178,2]
[327099641,1715811041584,-500.0,0.0001178,2]
[327099642,1715811041598,-500.0,0.0001178,2]
[327099643,1715811041611,-500.0,0.0001178,2]
[327099644,1715811041624,-500.0,0.0001178,2]
[327099645,1715811041634,-500.0,0.0001178,2]
[327099646,1715811041645,-486.88647151,0.0001178,2]
[327099647,1715811041657,-500.0,0.0001178,2]
[327099648,1715811041668,-500.0,0.0001178,2]
[327099649,1715811041680,-545.24,0.0001178,2]
[327099650,1715811041693,-415.32,0.0001178,2]
[327099651,1715811041705,-500.0,0.0001178,2]
[327099652,1715811041717,-183.88,0.0001178,2]
[327099653,1715811041730,-500.0,0.0001178,2]
[327099654,1715811041742,-500.0,0.0001178,2]
[327099655,1715811041755,-312.23,0.0001178,2]
[327099656,1715811041769,-500.0,0.0001178,2]
[327099657,1715811041782,-500.0,0.0001178,2]
[327099658,1715811041794,-500.0,0.0001178,2]
[327099659,1715811041806,-500.0,0.0001178,2]
[327099660,1715811041817,-500.0,0.0001178,2]
[327099661,1715811041828,-500.0,0.0001178,2]
[327099662,1715811041839,-500.0,0.0001178,2]
[327099663,1715811041851,-500.0,0.0001178,2]
[327099664,1715811041863,-500.0,0.0001178,2]
[327099665,1715811041875,-500.0,0.0001178,2]
[327099666,1715811041886,-500.0,0.0001178,2]
[327099667,1715811041898,-500.0,0.0001178,2]
[327099668,1715811041910,-500.0,0.0001178,2]
[327099669,1715811041919,-500.0,0.0001178,2]
[327099670,1715811041929,-500.0,0.0001178,2]
[327099671,1715811041941,-500.0,0.0001178,2]
[327099672,1715811041952,-344.48806672,0.0001178,2]
[327099673,1715811041964,-500.0,0.0001178,2]
[327099674,1715811041976,-500.0,0.0001178,2]
[327099675,1715811041987,-500.0,0.0001178,2]
[327099676,1715811042000,-590.84,0.0001178,2]
[327099677,1715811042012,-500.0,0.0001178,2]
[327099678,1715811042024,-500.0,0.0001178,2]
[327099679,1715811042036,-500.0,0.0001178,2]
[327099680,1715811042048,-500.0,0.0001178,2]
[327099681,1715811042061,-500.0,0.0001178,2]
[327099682,1715811042072,-500.0,0.0001178,2]
[327099683,1715811042082,-189.58,0.0001178,2]
[327099684,1715811042093,-500.0,0.0001178,2]
[327099685,1715811042102,-634.14,0.0001178,2]
[327099686,1715811042112,-500.0,0.0001178,2]
[327099687,1715811042123,-500.0,0.0001178,2]
[327099688,1715811042134,-500.0,0.0001178,2]
[327099689,1715811042146,-500.0,0.0001178,2]
[327099690,1715811042158,-500.0,0.0001178,2]
[327099691,1715811042169,-500.0,0.0001178,2]
[327099692,1715811042181,-500.0,0.0001178,2]
[327099693,1715811042191,-500.0,0.0001178,2]
[327099694,1715811042200,-500.0,0.0001178,2]
[327099695,1715811042211,-500.0,0.0001178,2]
[327099696,1715811042222,-500.0,0.0001178,2]
[327099697,1715811042233,-510.15958612,0.0001178,2]
[327099698,1715811042245,-419.42,0.0001178,2]
[327099699,1715811042256,-500.0,0.0001178,2]
[327099700,1715811042267,-506.08339332,0.0001178,2]
[327099701,1715811042276,-500.0,0.0001178,2]
[327099702,1715811042287,-500.0,0.0001178,2]
[327099703,1715811042297,-500.0,0.0001178,2]
[327099704,1715811042307,-500.0,0.0001178,2]
[327099705,1715811042317,-500.0,0.0001178,2]
[327099706,1715811042328,-500.0,0.0001178,2]
[327099707,1715811042338,-360.28,0.0001178,2]
[327099708,1715811042348,-500.0,0.0001178,2]
[327099709,1715811042359,-193.31,0.0001178,2]
[327099710,1715811042369,-500.0,0.0001178,2]
[327099711,1715811042380,-490.14,0.0001178,2]
[327099712,1715811042391,-500.0,0.0001178,2]
[327099714,1715811042401,-180.7,0.0001178,2]
[327099716,1715811042411,-500.0,0.0001178,2]
[327099718,1715811042422,-500.0,0.0001178,2]
[327099719,1715811042432,-500.0,0.0001178,2]
[327099720,1715811042442,-500.0,0.0001178,2]
[327099721,1715811042452,-500.0,0.0001178,2]
[327099722,1715811042463,-603.22379292,0.0001178,2]
[327099723,1715811042473,-500.0,0.0001178,2]
[327099724,1715811042483,-500.0,0.0001178,2]
[327099727,1715811042493,-500.0,0.0001178,2]
[327099731,1715811042505,-500.0,0.0001178,2]
[327099733,1715811042519,-500.0,0.0001178,2]
[327099737,1715811042531,-648.68,0.0001178,2]
[327099739,1715811042542,-500.0,0.0001178,2]
[327099741,1715811042554,-503.92406538,0.0001178,2]
[327099742,1715811042564,-500.0,0.0001178,2]
[327099744,1715811042575,-500.0,0.0001178,2]
[327099745,1715811042586,-500.0,0.0001178,2]
[327099746,1715811042596,-500.0,0.0001178,2]
[327099747,1715811042607,-214.42,0.0001178,2]
[327099748,1715811042617,-500.0,0.0001178,2]
[327099749,1715811042628,-500.0,0.0001178,2]
[327099750,1715811042638,-189.04,0.0001178,2]
[327099752,1715811042648,-500.0,0.0001178,2]
[327099754,1715811042659,-500.0,0.0001178,2]
[327099755,1715811042670,-500.0,0.0001178,2]
[327099756,1715811042682,-430.8,0.0001178,2]
[327099757,1715811042693,-318.62,0.0001178,2]
[327099758,1715811042703,-500.0,0.0001178,2]
[327099759,1715811042714,-500.0,0.0001178,2]
[327099760,1715811042724,-500.0,0.0001178,2]
[327099761,1715811042734,-195.18,0.0001178,2]
[327099762,1715811042744,-500.0,0.0001178,2]
[327099763,1715811042755,-500.0,0.0001178,2]
[327099764,1715811042766,-500.0,0.0001178,2]
[327099765,1715811042776,-500.0,0.0001178,2]
[327099766,1715811042787,-500.0,0.0001178,2]
[327099767,1715811042797,-500.0,0.0001178,2]
[327099768,1715811042808,-500.0,0.0001178,2]
[327099769,1715811042819,-500.0,0.0001178,2]
[327099770,1715811042829,-500.0,0.0001178,2]
[327099771,1715811042840,-500.0,0.0001178,2]
[327099772,1715811042852,-500.0,0.0001178,2]
[327099773,1715811042863,-500.0,0.0001178,2]
[327099774,1715811042874,-500.0,0.0001178,2]
[327099775,1715811042886,-500.0,0.0001178,2]
[327099776,1715811042897,-500.0,0.0001178,2]
[327099777,1715811042907,-500.0,0.0001178,2]
[327099778,1715811042918,-236.88817298,0.0001178,2]
[327099779,1715811042928,-500.0,0.0001178,2]
[327099780,1715811042938,-500.0,0.0001178,2]
[327099781,1715811042949,-500.0,0.0001178,2]
[327099782,1715811042959,-338.76,0.0001178,2]
[327099783,1715811042970,-500.0,0.0001178,2]
[327099784,1715811042980,-500.0,0.0001178,2]
[327099785,1715811042992,-607.42135028,0.0001178,2]
[327099786,1715811043003,-500.0,0.0001178,2]
[327099787,1715811043013,-500.0,0.0001178,2]
[327099788,1715811043024,-390.68,0.0001178,2]
[327099789,1715811043036,-500.0,0.0001178,2]
[327099790,1715811043047,-547.06,0.0001178,2]
[327099791,1715811043059,-500.0,0.0001178,2]
[327099792,1715811043069,-500.0,0.0001178,2]
[327099793,1715811043079,-500.0,0.0001178,2]
[327099794,1715811043090,-500.0,0.0001178,2]
[327099795,1715811043100,-500.0,0.0001178,2]
[327099796,1715811043111,-500.0,0.0001178,2]
[327099797,1715811043121,-500.0,0.0001178,2]
[327099798,1715811043132,-500.0,0.0001178,2]
[327099799,1715811043142,-500.0,0.0001178,2]
[327099800,1715811043152,-500.0,0.0001178,2]
[327099801,1715811043163,-500.0,0.0001178,2]
[327099802,1715811043173,-221.36,0.0001178,2]
[327099803,1715811043183,-500.0,0.0001178,2]
[327099804,1715811043194,-500.0,0.0001178,2]
[327099805,1715811043204,-500.0,0.0001178,2]
[327099806,1715811043214,-500.0,0.0001178,2]
[327099807,1715811043225,-500.0,0.0001178,2]
[327099808,1715811043236,-500.0,0.0001178,2]
[327099809,1715811043246,-500.0,0.0001178,2]
[327099810,1715811043256,-500.0,0.0001178,2]
[327099811,1715811043268,-1347.7,0.0001178,2]
[327099812,1715811043278,-500.0,0.0001178,2]
[327099813,1715811043288,-500.0,0.0001178,2]
[327099814,1715811043299,-500.0,0.0001178,2]
[327099815,1715811043309,-500.0,0.0001178,2]
[327099816,1715811043320,-504.45347341,0.0001178,2]
[327099817,1715811043330,-500.0,0.0001178,2]
[327099818,1715811043341,-500.0,0.0001178,2]
[327099819,1715811043352,-500.0,0.0001178,2]
[327099820,1715811043363,-500.0,0.0001178,2]
[327099821,1715811043374,-187.56,0.0001178,2]
[327099823,1715811043384,-500.0,0.0001178,2]
[327099825,1715811043395,-500.0,0.0001178,2]
[327099827,1715811043405,-500.0,0.0001178,2]
[327099830,1715811043416,-500.0,0.0001178,2]
[327099831,1715811043426,-500.0,0.0001178,2]
[327099832,1715811043437,-500.0,0.0001178,2]
[327099833,1715811043447,-500.0,0.0001178,2]
[327099834,1715811043457,-500.0,0.0001178,2]
[327099835,1715811043467,-603.35,0.0001178,2]
[327099836,1715811043478,-500.0,0.0001178,2]
[327099837,1715811043488,-500.0,0.0001178,2]
[327099838,1715811043498,-547.54,0.0001178,2]
[327099839,1715811043512,-500.0,0.0001178,2]
[327099840,1715811043522,-500.0,0.0001178,2]
[327099841,1715811043532,-500.0,0.0001178,2]
[327099842,1715811043542,-500.0,0.0001178,2]
[327099843,1715811043553,-500.0,0.0001178,2]
[327099844,1715811043564,-500.0,0.0001178,2]
[327099845,1715811043574,-500.0,0.0001178,2]
[327099846,1715811043586,-500.0,0.0001178,2]
[327099847,1715811043596,-500.0,0.0001178,2]
[327099848,1715811043606,-500.0,0.0001178,2]
[327099849,1715811043617,-500.0,0.0001178,2]
[327099850,1715811043627,-500.0,0.0001178,2]
[327099851,1715811043637,-500.0,0.0001178,2]
[327099852,1715811043648,-500.0,0.0001178,2]
[327099853,1715811043658,-500.0,0.0001178,2]
[327099854,1715811043668,-500.0,0.0001178,2]
[327099855,1715811043678,-500.0,0.0001178,2]
[327099856,1715811043689,-500.0,0.0001178,2]
[327099857,1715811043699,-500.0,0.0001178,2]
[327099858,1715811043710,-500.0,0.0001178,2]
[327099859,1715811043720,-500.0,0.0001178,2]
[327099860,1715811043731,-500.0,0.0001178,2]
[327099861,1715811043742,-500.0,0.0001178,2]
[327099862,1715811043752,-500.0,0.0001178,2]
[327099863,1715811043996,-500.0,0.0001178,2]
[327099864,1715811044018,-639.8,0.0001178,2]
[327099865,1715811044034,-500.0,0.0001178,2]
[327099866,1715811044043,-500.0,0.0001178,2]
[327099867,1715811044053,-500.0,0.0001178,2]
[327099868,1715811044062,-500.0,0.0001178,2]
[327099869,1715811044071,-500.0,0.0001178,2]
[327099870,1715811044080,-500.0,0.0001178,2]
[327099871,1715811044090,-500.0,0.0001178,2]
[327099872,1715811044100,-500.0,0.0001178,2]
[327099873,1715811044109,-500.0,0.0001178,2]
[327099874,1715811044119,-411.98,0.0001178,2]
[327099875,1715811044128,-500.0,0.0001178,2]
[327099876,1715811044139,-503.48,0.0001178,2]
[327099877,1715811044149,-500.0,0.0001178,2]
[327099878,1715811044159,-500.0,0.0001178,2]
[327099879,1715811044169,-500.0,0.0001178,2]
[327099880,1715811044178,-500.0,0.0001178,2]
[327099881,1715811044188,-500.0,0.0001178,2]
[327099882,1715811044197,-218.34,0.0001178,2]
[327099883,1715811044206,-500.0,0.0001178,2]
[327099884,1715811044215,-500.0,0.0001178,2]
[327099885,1715811044225,-207.44,0.0001178,2]
[327099886,1715811044234,-500.0,0.0001178,2]
[327099887,1715811044243,-500.0,0.0001178,2]
[327099888,1715811044253,-500.0,0.0001178,2]
[327099889,1715811044263,-500.0,0.0001178,2]
[327099890,1715811044272,-500.0,0.0001178,2]
[327099891,1715811044281,-500.0,0.0001178,2]
[327099892,1715811044291,-500.0,0.0001178,2]
[327099893,1715811044301,-500.0,0.0001178,2]
[327099894,1715811044310,-500.0,0.0001178,2]
[327099895,1715811044320,-561.22181075,0.0001178,2]
[327099896,1715811044329,-500.0,0.0001178,2]
[327099897,1715811044338,-500.0,0.0001178,2]
[327099898,1715811044348,-500.0,0.0001178,2]
[327099899,1715811044357,-538.49224741,0.0001178,2]
[327099900,1715811044367,-500.0,0.0001178,2]
[327099901,1715811044376,-500.0,0.0001178,2]
[327099902,1715811044386,-500.0,0.0001178,2]
[327099903,1715811044396,-500.0,0.0001178,2]
[327099904,1715811044405,-500.0,0.0001178,2]
[327099905,1715811044416,-500.0,0.0001178,2]
[327099906,1715811044425,-500.0,0.0001178,2]
[327099907,1715811044435,-500.0,0.0001178,2]
[327099908,1715811044444,-500.0,0.0001178,2]
[327099909,1715811044453,-500.0,0.0001178,2]
[327099910,1715811044464,-500.0,0.0001178,2]
[327099911,1715811044473,-500.0,0.0001178,2]
[327099912,1715811044483,-500.0,0.0001178,2]
[327099913,1715811044492,-500.0,0.0001178,2]
[327099914,1715811044501,-538.07,0.0001178,2]
[327099915,1715811044516,-500.0,0.0001178,2]
[327099916,1715811044526,-500.0,0.0001178,2]
[327099917,1715811044535,-500.0,0.0001178,2]
[327099918,1715811044545,-500.0,0.0001178,2]
[327099919,1715811044555,-500.0,0.0001178,2]
[327099920,1715811044564,-530.51,0.0001178,2]
[327099921,1715811044574,-500.0,0.0001178,2]
[327099922,1715811044583,-500.0,0.0001178,2]
[327099923,1715811044594,-367.1,0.0001178,2]
[327099924,1715811044605,-500.0,0.0001178,2]
[327099925,1715811044615,-500.0,0.0001178,2]
[327099926,1715811044624,-500.0,0.0001178,2]
[327099927,1715811044634,-500.0,0.0001178,2]
[327099928,1715811044643,-500.0,0.0001178,2]
[327099929,1715811044652,-206.24,0.0001178,2]
[327099930,1715811044661,-500.0,0.0001178,2]
[327099931,1715811044671,-500.0,0.0001178,2]
[327099932,1715811044680,-500.0,0.0001178,2]
[327099933,1715811044690,-500.0,0.0001178,2]
[327099934,1715811044699,-500.0,0.0001178,2]
[327099935,1715811044710,-500.0,0.0001178,2]
[327099936,1715811044719,-500.0,0.0001178,2]
[327099937,1715811044728,-500.0,0.0001178,2]
[327099938,1715811044737,-516.76232294,0.0001178,2]
[327099939,1715811044748,-500.0,0.0001178,2]
[327099940,1715811044758,-500.0,0.0001178,2]
[327099941,1715811044768,-500.0,0.0001178,2]
[327099942,1715811044778,-500.0,0.0001178,2]
[327099943,1715811044787,-314.59,0.0001178,2]
[327099944,1715811044796,-280.81,0.0001178,2]
[327099945,1715811044805,-500.0,0.0001178,2]
[327099946,1715811044815,-500.0,0.0001178,2]
[327099947,1715811044823,-500.0,0.0001178,2]
[327099948,1715811044833,-500.0,0.0001178,2]
[327099949,1715811044842,-500.0,0.0001178,2]
[327099950,1715811044852,-500.0,0.0001178,2]
[327099951,1715811044861,-500.0,0.0001178,2]
[327099952,1715811044870,-500.0,0.0001178,2]
[327099953,1715811044879,-156.17,0.0001178,2]
[327099954,1715811044889,-500.0,0.0001178,2]
[327099955,1715811044898,-500.0,0.0001178,2]
[327099956,1715811044907,-500.0,0.0001178,2]
[327099957,1715811044917,-176.83,0.0001178,2]
[327099958,1715811044926,-500.0,0.0001178,2]
[327099959,1715811044935,-500.0,0.0001178,2]
[327099960,1715811044944,-500.0,0.0001178,2]
[327099961,1715811044953,-549.04,0.0001178,2]
[327099962,1715811044962,-537.97,0.0001178,2]
[327099963,1715811044971,-500.0,0.0001178,2]
[327099964,1715811044980,-549.04,0.0001178,2]
[327099965,1715811044990,-500.0,0.0001178,2]
[327099966,1715811044999,-620.23140164,0.0001178,2]
[327099967,1715811045009,-500.0,0.0001178,2]
[327099968,1715811045018,-500.0,0.0001178,2]
[327099969,1715811045027,-500.0,0.0001178,2]
[327099970,1715811045037,-500.0,0.0001178,2]
[327099971,1715811045046,-500.0,0.0001178,2]
[327099972,1715811045056,-500.0,0.0001178,2]
[327099973,1715811045066,-500.0,0.0001178,2]
[327099974,1715811045075,-500.0,0.0001178,2]
[327099975,1715811045084,-500.0,0.0001178,2]
[327099976,1715811045093,-500.0,0.0001178,2]
[327099977,1715811045103,-500.0,0.0001178,2]
[327099978,1715811045112,-500.0,0.0001178,2]
[327099979,1715811045121,-500.0,0.0001178,2]
[327099980,1715811045131,-500.0,0.0001178,2]
[327099981,1715811045140,-500.0,0.0001178,2]
[327099982,1715811045149,-500.0,0.0001178,2]
[327099983,1715811045158,-500.0,0.0001178,2]
[327099984,1715811045168,-500.0,0.0001178,2]
[327099985,1715811045177,-500.0,0.0001178,2]
[327099986,1715811045187,-500.0,0.0001178,2]
[327099987,1715811045196,-500.0,0.0001178,2]
[327099988,1715811045205,-500.0,0.0001178,2]
[327099989,1715811045215,-500.0,0.0001178,2]
[327099990,1715811045224,-293.88,0.0001178,2]
[327099991,1715811045233,-500.0,0.0001178,2]
[327099992,1715811045243,-500.0,0.0001178,2]
[327099993,1715811045254,-500.0,0.0001178,2]
[327099994,1715811045264,-500.0,0.0001178,2]
[327099995,1715811045273,-500.0,0.0001178,2]
[327099996,1715811045283,-500.0,0.0001178,2]
[327099997,1715811045293,-500.0,0.0001178,2]
[327099998,1715811045302,-500.0,0.0001178,2]
[327099999,1715811045312,-500.0,0.0001178,2]
[327100000,1715811045323,-500.0,0.0001178,2]
[327100001,1715811045332,-500.0,0.0001178,2]
[327100002,1715811045343,-169.41400057,0.0001178,2]
[327100003,1715811045352,-500.0,0.0001178,2]
[327100004,1715811045362,-1905.54,0.0001178,2]
[327100005,1715811045372,-768.96,0.0001178,2]
[327100006,1715811045381,-1905.54,0.0001178,2]
[327100007,1715811045390,-768.96,0.0001178,2]
[327100008,1715811045400,-370.98,0.0001178,2]
[327100009,1715811045410,-513.76776772,0.0001178,2]
[327100010,1715811045419,-500.0,0.0001178,2]
[327100011,1715811045428,-524.63191834,0.0001178,2]
[327100012,1715811045437,-500.0,0.0001178,2]
[327100013,1715811045446,-500.0,0.0001178,2]
[327100014,1715811045455,-500.0,0.0001178,2]
[327100015,1715811045465,-500.0,0.0001178,2]
[327100016,1715811045474,-500.0,0.0001178,2]
[327100017,1715811045483,-500.0,0.0001178,2]
[327100018,1715811045492,-166.850613,0.0001181,2]
[327100019,1715811045503,-194.499434,0.0001181,2]
[327100020,1715811045518,-685.963768,0.0001181,2]
[327100021,1715811045527,-150.0,0.00011811,2]
[327100022,1715811045536,-904.0,0.00011839,2]
[327100023,1715811045547,-2307.74720918,0.00011898,2]
[327100024,1715811045556,-2307.74720917,0.00011898,2]
[327100026,1715811045566,-4100.0,0.00011904,2]
[327100028,1715811045575,-700.0,0.00011904,2]
[327100030,1715811045587,-3200.0,0.00011904,2]
[327100032,1715811045597,-1200.0,0.00011904,2]
[327100033,1715811045606,-150.0,0.00011919,2]
[327100034,1715811045616,-160.45,0.0001195,2]
[327100035,1715811045625,-194.499434,0.00011954,2]
[327100036,1715811045635,-685.963768,0.00011954,2]
[327100037,1715811045646,-410.03425881,0.00012,2]
[327100038,1715811045656,-891.59702285,0.00012,2]
[327100039,1715811045666,-150.0,0.00012027,2]
[327100040,1715811045676,-171.28,0.00012033,2]
[327100041,1715811045685,-2307.74720917,0.00012046,2]
[327100042,1715811045694,-166.850613,0.00012098,2]
[327100043,1715811045704,-154.455866,0.00012098,2]
[327100044,1715811045713,-194.499434,0.00012098,2]
[327100045,1715811045723,-685.963768,0.00012098,2]
[327100046,1715811045732,-180.0,0.00012175,2]
[327100047,1715811045741,-1050.0,0.000122,2]
[327100048,1715811045751,-170.37,0.00012208,2]
[327100049,1715811045760,-2174.19279206,0.00012228,2]
[327100050,1715811045997,-133.55441711,0.00012228,2]
[327100051,1715811046007,-500.0,0.00012328,2]
[327100052,1715811046016,-466.44558289,0.00012411,2]
[327100053,1715811046028,-1841.30162628,0.00012411,2]
[327100054,1715811046037,-150.0,0.00012429,2]
[327100055,1715811046047,-2478.712,0.00012454,2]
[327100056,1715811046057,-414.317,0.00012454,2]
[327100057,1715811046066,-196.12649541,0.00012488,2]
[327100058,1715811046078,-381.03350459,0.00012488,2]
[327100059,1715811046087,-1274.41,0.00012488,2]
[327100060,1715811046096,-500.0,0.00012488,2]
[327100061,1715811046105,-1037.05,0.00012488,2]
[327100062,1715811046115,-616.26,0.00012488,2]
[327100063,1715811046124,-500.0,0.00012488,2]
[327100064,1715811046133,-412.51,0.00012488,2]
[327100065,1715811046142,-577.16,0.00012489,2]
[327100066,1715811046152,-1274.41,0.00012489,2]
[327100067,1715811046161,-500.0,0.00012489,2]
[327100068,1715811046170,-1037.05,0.00012489,2]
[327100069,1715811046179,-616.26,0.00012489,2]
[327100070,1715811046188,-500.0,0.00012489,2]
[327100071,1715811046198,-155.0,0.000125,2]
[327100072,1715811046207,-2307.74720917,0.00012594,2]
[327100073,1715811046216,-419.57,0.00012603,2]
[327100074,1715811046225,-600.0,0.00012708,2]
[327100075,1715811046235,-4100.0,0.00012726,2]
[327100076,1715811046244,-519.51371507,0.00012726,2]
[327100077,1715811046257,-180.48628493,0.00012726,2]
[327100078,1715811046266,-969.09557507,0.00012726,2]
[327100079,1715811046277,-1009.52984862,0.00012726,2]
[327100080,1715811046409,-250.0,0.00010404,2]
[327100081,1715811046419,-1221.37457631,0.00012726,2]
[327100082,1715811046428,-571.38271651,0.00012726,2]
[327100083,1715811046439,-628.61728349,0.00012726,2]
[327100084,1715811046449,-500.0,0.00012726,2]
[327100085,1715811046458,-202.54139833,0.0001275,2]
[327100086,1715811046469,-771.94179699,0.0001275,2]
[327100087,1715811046480,-1265.74439394,0.0001275,2]
[327100088,1715811046618,-256.7148173,0.0001275,2]
[327100089,1715811046785,-1552.16653,0.00011795,2]
[327100090,1715811047073,-6862.99546051,0.00011795,2]
[327100091,1715811047083,-4476.3810267,0.0001275,2]
[327100092,1715811047094,-5675.90947303,0.0001275,2]
[327100093,1715811047104,-150.0,0.00012757,2]
[327100094,1715811047114,-2307.74720917,0.00012777,2]
[327100095,1715811047123,-5000.0,0.000128,2]
[327100096,1715811047133,-188.75,0.00012858,2]
[327100097,1715811047142,-3000.0,0.0001287,2]
[327100098,1715811047152,-500.0,0.00012876,2]
[327100099,1715811047161,-1029.93,0.00012876,2]
[327100100,1715811047171,-500.0,0.00012876,2]
[327100101,1715811047180,-1029.93,0.00012876,2]